Cogmind - Beta 13 @@@ ROGUE MODE // 2024.04.03 @ 02:32:36 Player: Reimu Result: Destroyed by G-47 Trooper with Particle Gun Performance ------------- Evolutions (1) 500 Regions Visited (2) 400 Robots Destroyed (27) 135 Value Destroyed (460) 460 Prototype IDs (0) 0 Alien Tech Used (0) 0 Bonus (0) 0 TOTAL SCORE: 1495 Bonus ------- None Cogmind --------- Core Integrity 0/400 Matter 30/300 Energy 100/100 System Corruption 0% Temperature Cool (9) Movement Core (1350) Ox26 Location -9/Materials Parts ------- > --- POWER (1) -------- (None) > --- PROPULSION (3) --- (None) > --- UTILITY (3) ------ Huge Storage Unit > --- WEAPON (2) ------- (None) > --- INVENTORY (25) --- Light Ion Engine Heat Sink Large Storage Unit Light Armor Plating Light Armor Plating Light Armor Plating Light Armor Plating Peak State ------------ > --- POWER ------------ Light Ion Engine > --- PROPULSION ------- Aluminum Leg Aluminum Leg > --- UTILITY ---------- Huge Storage Unit Light Armor Plating > --- WEAPON ----------- Grenade Launcher Grenade Launcher > --- INVENTORY -------- Light Ion Engine Heat Sink Large Storage Unit Light Armor Plating Light Armor Plating Light Armor Plating Light Armor Plating Light Armor Plating Assault Rifle Grenade Launcher [Rating: 8] Favorites ----------- Power Light Ion Engine Engine Light Ion Engine Propulsion Aluminum Leg Leg Aluminum Leg Utility Huge Storage Unit Device Heat Sink Storage Huge Storage Unit Protection Light Armor Plating Weapon Grenade Launcher Energy Gun Medium Laser Ballistic Gun Assault Rifle Launcher Grenade Launcher Build | -11 -10 -9 ------- Run | Yrd Mat Mat Slots Evolved 2 | . . 2 Power . | . . . Propulsion 1 | . . 1 Utility 1 | . . 1 Weapon . | . . . Parts Attached 21 | 6 13 2 Power 2 | 1 1 . Engine 2 | 1 1 . Core . | . . . Reactor . | . . . Propulsion 3 | 2 1 . Treads . | . . . Leg 3 | 2 1 . Wheel . | . . . Hover . | . . . Flight . | . . . Utility 8 | 1 5 2 Device 2 | 1 1 . Storage 3 | . 2 1 Processor . | . . . Hackware . | . . . Protection 3 | . 2 1 Artifact . | . . . Weapon 8 | 2 6 . Energy Gun 1 | 1 . . Energy Cannon . | . . . Ballistic Gun 2 | 1 1 . Ballistic Cannon . | . . . Launcher 5 | . 5 . Special Weapon . | . . . Impact Weapon . | . . . Slashing Weapon . | . . . Piercing Weapon . | . . . Special Melee Weapon . | . . . Unidentified Prototypes . | . . . Parts Lost 9 | . 2 7 Power 1 | . . 1 Propulsion 2 | . . 2 Utility 2 | . . 2 Weapon 4 | . 2 2 Highest Loss Streak 7 | . 1 7 To Critical Strikes . | . . . Average Slot Usage (%) 93 | . 96 65 Engine 13 | . 14 7 Leg 26 | . 28 17 Device 3 | . 4 . Storage 12 | . 12 11 Protection 10 | . 9 14 Ballistic Gun 4 | . 4 9 Launcher 20 | . 22 6 Naked Turns . | . . . Heaviest Build 94 | 8 92 94 Greatest Support 20 | 20 20 20 Greatest Overweight (x) 27 | . 4 27 Average Overweight (x) 2 | . 2 5 Largest Inventory Capacity 25 | 5 25 25 Average Capacity 21 | 5 22 25 Most Carried 10 | 2 10 8 Average Carried 4 | . 4 7 Final Capacity 25 | 5 25 25 Final Carried 8 | . 8 7 Class Distribution -------------------- 100% | Mutant Dominant Class ---------------- Mutant | -10/Materials Mutant | -9/Materials Resources | -11 -10 -9 ----------- Run | Yrd Mat Mat Matter Collected 470 | 259 190 21 Remotely . | . . . Salvage Created 397 | 62 305 30 Parts 51 | 3 43 5 Haulers Intercepted . | . . . Recyclers Shooed . | . . . Parts Field Recycled . | . . . Retrieved Matter . | . . . Parts Self-Destructed . | . . . Prevented . | . . . Kills | -11 -10 -9 ------- Run | Yrd Mat Mat Combat Hostiles Destroyed 13 | 1 11 1 Guns 2 | 1 . 1 AOE 11 | . 11 . Classes Destroyed 8 | 2 5 1 Worker 4 | . 4 . Builder 4 | . 4 . Tunneler 1 | 1 . . Recycler 1 | . 1 . Watcher 4 | . 2 2 Swarmer 6 | . 6 . Grunt 6 | 1 5 . Sentry 1 | . . 1 Best Kill Streak 8 | 2 8 2 Combat Bots Only 3 | 1 3 1 Max Kills in Single Turn 6 | 2 6 1 Gunslinging . | . . . Exploded 2 | . 2 . Melee . | . . . Uniques/NPCs Destroyed . | . . . Combat | -11 -10 -9 -------- Run | Yrd Mat Mat Hostile Shots Fired 176 | 4 65 107 Missed 58 | 2 22 34 Damage Taken 1578 | 23 561 994 Core 493 | . 93 400 Absorbed by Shields . | . . . Core Remaining (%) 81 | 100 62 . Volleys Fired 33 | 3 16 14 Largest 2 | 2 2 1 Hottest 70 | 70 60 30 Shots Fired 48 | 6 28 14 Gun 16 | 6 . 10 Cannon . | . . . Launcher 32 | . 28 4 Special . | . . . Kinetic 13 | 3 . 10 Thermal 3 | 3 . . Explosive 32 | . 28 4 Electromagnetic . | . . . Robot Hit Streak 4 | 1 4 3 Robot Miss Streak 4 | 4 2 2 Penetration Max . | . . . Secondary Targets . | . . . Shots Hit Robots 14 | 2 5 7 Core Hits 35 | 3 24 8 Critical Kills . | . . . Critical Parts Destroyed . | . . . Critical Strikes 1 | 1 . . Burn 1 | 1 . . Melee Attacks . | . . . Impact . | . . . Slashing . | . . . Piercing . | . . . Sneak Attacks . | . . . Combat Hostiles . | . . . Follow-up Attacks . | . . . Damage Inflicted 1270 | 40 944 286 Guns 114 | 40 . 74 Cannons . | . . . Explosions 1156 | . 944 212 Melee . | . . . Ramming . | . . . Kinetic 101 | 27 . 74 Thermal 13 | 13 . . Explosive 1156 | . 944 212 Electromagnetic . | . . . Impact . | . . . Slashing . | . . . Piercing . | . . . Highest Corruption 1 | . 1 . Average Corruption 1 | . 1 . Corruption Purged . | . . . Corruption Blocked . | . . . Effects 4 | . 4 . Message Errors 1 | . 1 . Matter Fused 2 | . 2 . Energy Discharges 1 | . 1 . Overload Shots . | . . . Overflow Damage 24 | . 11 13 Projectiles . | . . . Explosions 24 | . 11 13 Melee . | . . . Knockbacks . | . . . Impact . | . . . Kinetic . | . . . Secondary . | . . . Self-Inflicted Damage 45 | . 45 . Shots 3 | . 3 . Rammed . | . . . Targets Rammed . | . . . Kicked . | . . . Crushed . | . . . Highest Temperature 39 | 39 27 10 Average Temperature 11 | 19 10 5 Received Heat Transfer 609 | 12 72 525 Siege Activations . | . . . Robots Corrupted . | . . . Combat Hostiles . | . . . Parts Fried . | . . . Impact Corruptions . | . . . Robots Melted . | . . . Combat Hostiles . | . . . Parts Melted . | . . . Heat Transferred 111 | 111 . . Parts Sabotaged . | . . . Parts Stolen . | . . . Parts Stripped . | . . . Power Chain Reactions . | . . . Alert | -11 -10 -9 ------- Run | Yrd Mat Mat Peak Influence 317 | 25 317 117 Initial 62 | . 16 62 Average 89 | 4 94 87 Maximum Alert Level 1 | . 1 . Low Security (%) 90 | 100 88 100 Level 1 9 | . 11 . Level 2 . | . . . Level 3 . | . . . Level 4 . | . . . Level 5 . | . . . High Security . | . . . Max Security . | . . . Squads Dispatched 3 | . 3 . Investigation 2 | . 2 . Extermination . | . . . Reinforcement 1 | . 1 . Assault . | . . . Garrison . | . . . Intercept . | . . . Searches Triggered . | . . . Construction Impeded . | . . . Haulers Reinforced . | . . . Active Scanning Responses . | . . . Cargo Convoy Interrupts . | . . . Stealth | -11 -10 -9 --------- Run | Yrd Mat Mat Distress Signals 1 | . . 1 Communications Jammed . | . . . Distress Signals . | . . . Times Spotted 22 | 1 15 6 Peak Tracking Total 6 | 1 6 3 Tactical Retreats . | . . . Traps | -11 -10 -9 ------- Run | Yrd Mat Mat Traps Triggered 1 | . 1 . Indirectly . | . . . Trap Hack Attempts . | . . . Triggered . | . . . Disarmed . | . . . Reprogrammed . | . . . Reused . | . . . Traps Extracted . | . . . Installed . | . . . Triggered . | . . . Machines | -11 -10 -9 ---------- Run | Yrd Mat Mat Machines Disabled 5 | . 4 1 Max in Single Turn 2 | . 2 1 Machines Repaired . | . . . Machines Dismantled . | . . . Machines Sabotaged . | . . . Overloaded Fab Kills . | . . . Hacking | -11 -10 -9 --------- Run | Yrd Mat Mat Machines Accessed 6 | . 6 . Terminals 4 | . 4 . Fabricators . | . . . Repair Stations . | . . . Recycling Units 2 | . 2 . Scanalyzers . | . . . Garrison Access . | . . . Total Hacks 26 | . 26 . Successful 13 | . 13 . Failed 13 | . 13 . Catastrophic . | . . . Database Lockouts . | . . . Manual . | . . . Terminals 17 | . 17 . Fabricators . | . . . Repair Stations . | . . . Recycling Units 9 | . 9 . Scanalyzers . | . . . Garrison Access . | . . . Terminal Hacks 9 | . 9 . Record 4 | . 4 . Emergency Access Points 1 | . 1 . Alert Level 2 | . 2 . Dispatch Records 1 | . 1 . Investigation Status 1 | . 1 . Fabricator Hacks . | . . . Repair Station Hacks . | . . . Recycling Unit Hacks 4 | . 4 . Recycle Component 1 | . 1 . Process 1 | . 1 . Report Inventory 1 | . 1 . Retrieve Matter 1 | . 1 . Scanalyzer . | . . . Garrison Access Hacks . | . . . Unauthorized Hacks . | . . . Terminals . | . . . Fabricators . | . . . Repair Stations . | . . . Recycling Units . | . . . Scanalyzers . | . . . Garrison Access . | . . . Data Cores Recovered . | . . . Used . | . . . Hacking Detections 4 | . 4 . Full Trace Events 4 | . 4 . Feedback Events . | . . . Feedback Blocked . | . . . Robot Schematics Acquired . | . . . Robots Built . | . . . Authchips . | . . . Time . | . . . Total Robot Build Rating . | . . . Part Schematics Acquired . | . . . Parts Built . | . . . Authchips . | . . . Time . | . . . Total Part Build Rating . | . . . Parts Repaired . | . . . Time . | . . . Parts Recycled 1 | . 1 . Recycled Matter 37 | . 37 . Retrieved Matter . | . . . Retrieved Components . | . . . Parts Scanalyzed . | . . . Part Schematics Acquired . | . . . Parts Damaged . | . . . Bothacking | -11 -10 -9 ------------ Run | Yrd Mat Mat Used RIF Installer . | . . . Robots Hacked . | . . . Non-combat . | . . . Combat . | . . . Robot Hacks Applied . | . . . Relay Couplers Released . | . . . Fabnet Peak Effective % . | . . . Robots Rewired . | . . . Allies Hacked . | . . . Hacks Repelled . | . . . Allies | -11 -10 -9 -------- Run | Yrd Mat Mat Total Allies . | . . . Largest Group . | . . . Highest-Rated Group . | . . . Highest-Rated Ally . | . . . Total Orders . | . . . Ally Attacks . | . . . Total Damage . | . . . Kills . | . . . Allies Corrupted . | . . . Allies Melted . | . . . Intel | -11 -10 -9 ------- Run | Yrd Mat Mat Robot Analysis Total . | . . . Derelict Logs Recovered . | . . . Drone Launches . | . . . Drone Recoveries . | . . . Exploration | -11 -10 -9 ------------- Run | Yrd Mat Mat Turns Passed 1910 | 88 1603 219 Spaces Moved 609 | 70 498 41 Core 26 | 23 . 3 Treads . | . . . Legs 583 | 47 498 38 Wheels . | . . . Hover . | . . . Flight . | . . . Fastest Speed 50 | 50 120 400 Average Speed 292 | 97 304 477 Slowest Speed 1400 | 120 400 1400 Overloaded Moves . | . . . Propulsion Burnouts . | . . . Robots Hopped . | . . . Cave-ins Triggered 1 | . 1 . Exploration Rate (%) 29 | 6 73 9 Regions Visited 2 Branch Regions . Pre-discovered Areas . | . . . Known Exits Taken . | . . . Unknown Exits Taken 2 | 1 1 . Scrap Searched . | . . . Spaces Dug . | . . . Terrain Destroyed 139 | . 129 10 Melee . | . . . Projectile . | . . . AOE 139 | . 129 10 Terrain Rammed . | . . . Walls Destroyed . | . . . Machines Disabled . | . . . Actions | -11 -10 -9 --------- Run | Yrd Mat Mat Total 697 | 84 555 58 Wait 13 | . 13 . Move 607 | 69 497 41 Hop . | . . . Pick Up 20 | 6 14 . Fast Attach . | . . . Attach 12 | 6 4 2 Detach 1 | . . 1 Swap 9 | . 9 . Drop 2 | . 2 . Fire 33 | 3 16 14 Melee . | . . . Ram . | . . . Kick . | . . . Crush . | . . . Escape Stasis . | . . . Rewire . | . . . Trap . | . . . Miscellaneous . | . . . Route ------- -11/Scrapyard -10/Materials (discovered 2 exits: [*Mat] / [*Min]) -9/Materials History --------- Turn | Location | Event 2 | -11/Scrapyard | Met Revision 17 60 | -11/Scrapyard | Discovered new exit (range 8) 89 | -11/Scrapyard | Entered Materials 310 | -10/Materials | Build established: Mutant 412 | -10/Materials | Discovered new exit (range 8) 1230 | -10/Materials | Crushed by falling debris 1342 | -10/Materials | Discovered new exit (range 7) 1692 | -10/Materials | Entered another Materials area 1692 | -9/Materials | Evolved 2 slots: Propulsion x1, Utility x1 1888 | -9/Materials | Core integrity fell below 50% 1904 | -9/Materials | Core integrity fell below 20% 1910 | -9/Materials | Lost 7 parts (1p2n2u2w) 1911 | -9/Materials | Destroyed by G-47 Trooper with Particle Gun Last Messages --------------- U-05 Engineer destroyed. K-01 Serf collects debris. R-06 Scavenger collects Terrain Scan Processor. K-01 Serf collects debris. R-06 Scavenger collects Structural Scanner. Aluminum Leg destroyed. K-01 Serf collects debris. Aluminum Leg destroyed. K-01 Serf collects debris. Critical hit (Burn: +37). Assault Rifle destroyed. K-01 Serf collects debris. R-06 Scavenger collects Terrain Scanner. K-01 Serf collects debris. R-06 Scavenger collects Welding Torch. K-01 Serf collects debris. Critical hit (Burn: +37). K-01 Serf collects debris. Critical hit (Burn: +37). K-01 Serf collects debris. Map ----- +----------------------------------------------------+ | | | | | | | | | | | | | | | | | | | | | ?????????????????????????????????????????????????? | | ?????????????????????????????????????????????????? | | ?????????????????????????????????????????????????? | | ???????????????????###########???????????????????? | | ???????????????????# #???????????????????? | | ???????????????????# #???????????????????? | | ???????????????????# #???????????????????? | | ???????????????????# #???????????????????? | | ???????????????????# #####???????????????? | | ???????????????????# # #???????????????? | | ???????????????????# # #???????????????? | | ???????????????????# # #???????????????? | | ???????????????????#######+### #????????##?????? | | ??????????????????????# #????? ????? | | ??????????????????????# #### ??? | | ??????????????????????# @ ??? | | ??????????????????????# ??? | | ??????????????????????# g ??? | | ??????????????????????# k " """ ][[ ^ ???? | | ?????????????????????## "" """ ][[ ???? | | ?????????????????????## " """ ][[ !????? | | ?????????????????????## % r ????? | | ?????????????????????## ????? | | ????????????????????### ?????? | | ??????????????????? # ####?????? | | ??????????????????! # #????????? | | ???????????????? ! a g g #????????? | | ???????????????+ # ??????????? | | ??????????????## ^ # ???????????? | | ???????????????# [ # ???????????? | | ???????????????#### ### ###+#######????????????? | | ??????????????????##??# ??? ??????????????????? | | ??????????????????????# ??? "??????????????????? | | ??????????????????????# ???????????????????????? | | ??????????????????????# ???????????????????????? | | ??????????????????????? ???????????????????????? | | ?????????????????????????????????????????????????? | | ?????????????????????????????????????????????????? | | ?????????????????????????????????????????????????? | | ?????????????????????????????????????????????????? | +----------------------------------------------------+ Best States ------------- Heat Dissipation 35 Energy Generation 10 Energy Capacity 125 Matter Stores 300 Matter Capacity 300 Sight Range 16 Terrain Scan Density 10 Armor Coverage 300 Evasion (%) 55 Item Schematics ----------------- None Robot Schematics ------------------ None Fabricated ------------ Nothing Alien Tech Used ----------------- None Achievements -------------- Oops Unlikely Earthworm Challenges ------------ None Game ------ Seed GrapheneSpectralBooster Manual? 0 Play Time 00:18:01 Cumulative 0.9 hours Start 2024.04.03 @ 02:16:00 End 2024.04.03 @ 02:32:36 Sessions 1 Manual Loads 0 Difficulty Rogue Special Mode None Game No. 2 Rogue 2 Adventurer 0 Explorer 0 Win Type - Total 0 Types 0/0/0/0/0/0/0/0/0 Lore% 0 Gallery% 2 Achievement% 3 Wizard Run 0 Options --------- Layout 1 ASCII 0 Keyboard 0 Movement Mouse Keybinds 0 Fullscreen 1 Font 32/SmallcapsGlow Map View 50x35 Zoom Use 0% Tactical HUD 0 Map Filters NONE Filters NONE Steam 1 RUN: 83d12dfc-5f80-4389-b66d-89b728cdcd25